bitfinex-derivatives/quotes_ETHF0:USTF0_20250411
["timestamp","ask_amount","ask_price","bid_price","bid_amount"]
[1744379768064,1.28313803,1571.1,1571.0,14.93613427]
[1744379768465,0.00953803,1571.1,1571.0,19.93613427]
[1744379768761,9.90890728,1571.3,1571.2,1.27352]
[1744379768966,11.18234728,1571.3,1571.2,4.48132]
[1744379769166,9.90890728,1571.3,1571.2,5.80550733]
[1744379769365,9.90890728,1571.3,1571.2,4.48132]
[1744379769667,9.90890728,1571.3,1571.2,17.53624223]
[1744379769866,12.39927019,1571.4,1571.3,1.27344]
[1744379770063,1e-08,1571.4,1571.3,8.43706223]
[1744379770261,1e-08,1571.4,1571.3,12.11414]
[1744379770461,1e-08,1571.4,1571.3,7.11414]
[1744379770967,1e-08,1571.4,1571.3,12.11414]
[1744379771157,1e-08,1571.4,1571.3,7.11414]
[1744379771862,1e-08,1571.4,1571.3,5.8407]
[1744379772364,1e-08,1571.4,1571.3,7.11414]
[1744379773263,1e-08,1571.4,1571.3,5.8407]
[1744379773468,1e-08,1571.4,1571.3,7.11414]
[1744379773666,1e-08,1571.4,1571.3,5.8407]
[1744379773966,1e-08,1571.4,1571.3,7.11414]
[1744379780972,1.27336001,1571.4,1571.3,7.11414]
[1744379781273,1e-08,1571.4,1571.3,7.11414]
[1744379782769,1e-08,1571.4,1571.3,12.11414]
[1744379783365,1e-08,1571.4,1571.3,7.11414]
[1744379784870,1e-08,1571.4,1571.3,12.11414]
[1744379785679,1e-08,1571.4,1571.3,7.11414]
[1744379785870,1e-08,1571.4,1571.3,12.11414]
[1744379786069,1e-08,1571.4,1571.3,13.42945501]
[1744379787475,1e-08,1571.4,1571.3,13.42940053]
[1744379787681,1e-08,1571.4,1571.3,7.11414]
[1744379788877,1.27336001,1571.4,1571.3,7.11414]
[1744379789068,1e-08,1571.4,1571.3,7.11414]
[1744379789471,1.27336001,1571.4,1571.3,7.11414]
[1744379789681,1.27336001,1571.4,1571.2,3.2078]
[1744379789978,7.40464,1571.3,1571.2,4.48132]
[1744379790583,6.1312,1571.3,1571.2,4.48132]
[1744379790975,12.40464,1571.3,1571.2,4.48132]
[1744379791177,12.40464,1571.3,1571.2,3.2078]
[1744379791381,1.27352,1571.2,1571.0,1.27361]
[1744379791683,6.1312,1571.1,1571.0,1.27361]
[1744379792181,6.1312,1571.1,1571.0,4.48141]
[1744379792380,4.90280001,1571.4,1571.0,3.2078]
[1744379792682,10.89970001,1571.4,1571.3,4.48124]
[1744379793082,12.17306001,1571.4,1571.3,4.48124]
[1744379793482,12.17306001,1571.4,1571.3,3.2078]
[1744379793680,1.2735,1571.3,1571.1,7.26706]
[1744379793985,5.9969,1571.2,1571.1,7.26706]
[1744379794678,4.90280001,1571.4,1571.3,1.27344]
[1744379794874,1e-08,1571.4,1571.3,4.48124]
[1744379795475,6.16590001,1571.4,1571.3,4.48124]
[1744379795886,7.43926001,1571.4,1571.3,4.48124]
[1744379796090,6.16590001,1571.4,1571.3,4.48124]
[1744379797079,6.16590001,1571.4,1571.3,1.27344]
[1744379797278,7.43926001,1571.4,1571.1,9.2013]
[1744379797477,6.16590001,1571.4,1571.3,4.48124]
[1744379797677,1e-08,1571.4,1571.3,4.48124]
[1744379798387,6.31020001,1571.4,1571.3,4.48124]
[1744379798781,6.31020001,1571.4,1571.3,1.27344]
[1744379798987,7.58356001,1571.4,1571.3,1.27344]
[1744379799284,6.31020001,1571.4,1571.3,4.48124]
[1744379799480,1e-08,1571.4,1571.3,5.8053208]
[1744379799682,1e-08,1571.4,1571.3,5.80531933]
[1744379799879,1e-08,1571.4,1571.3,17.51626217]
[1744379800084,1e-08,1571.4,1571.3,22.65086217]
[1744379803389,1e-08,1571.4,1571.3,22.64911711]
[1744379804191,1e-08,1571.4,1571.3,17.64911711]
[1744379806492,1e-08,1571.4,1571.3,22.64911711]
[1744379806994,1e-08,1571.4,1571.3,22.64940425]
[1744379808685,1e-08,1571.4,1571.3,22.64898059]
[1744379809693,1e-08,1571.4,1571.3,22.64904686]
[1744379810598,1e-08,1571.4,1571.3,22.64864908]
[1744379811195,1e-08,1571.4,1571.3,33.19864908]
[1744379811698,1e-08,1571.4,1571.3,22.64864908]
[1744379811893,1e-08,1571.4,1571.3,17.64864908]
[1744379812396,1e-08,1571.4,1571.3,17.6487359]
[1744379814194,1e-08,1571.4,1571.3,17.64873275]
[1744379814498,1e-08,1571.4,1571.3,22.64873275]
[1744379814893,6.01,1571.9,1571.8,1.27303]
[1744379815196,5.99701039,1571.9,1571.8,4.48083]
[1744379815396,10.99701039,1571.9,1571.8,4.48083]
[1744379817197,12.26996039,1571.9,1571.8,4.48083]
[1744379817387,12.26996039,1571.9,1571.8,1.27303]
[1744379817787,1.27303,1571.8,1571.7,0.00953803]
[1744379817994,6.35743,1571.8,1571.7,0.00953803]
[1744379818195,12.41693,1571.8,1571.7,0.00953803]
[1744379818395,17.41693,1571.8,1571.7,1.28264803]
[1744379818595,17.41693,1571.8,1571.7,0.00953803]
[1744379818789,17.41693,1571.8,1571.7,1.28264803]
[1744379818994,16.1439,1571.8,1571.7,1.28264803]
[1744379819199,11.1439,1571.8,1571.7,1.28264803]
[1744379820495,11.1439,1571.8,1571.7,7.23554803]
[1744379821098,11.1439,1571.8,1571.7,1.28264803]
[1744379821295,11.1439,1571.8,1571.7,7.75761294]
[1744379821498,5.03383803,1572.0,1571.9,1.27295]
[1744379821801,4.95801292,1572.3,1572.2,1.27271]
[1744379822008,4.95801292,1572.3,1572.2,4.48051]
[1744379822502,15.98901483,1572.4,1572.3,1.27263]
[1744379823496,20.98901483,1572.4,1572.3,1.27263]
[1744379824301,22.26163483,1572.4,1572.2,1.27267]
[1744379824498,24.19681483,1572.4,1572.1,1.27272]
[1744379824698,5.0374,1572.3,1572.2,1.27271]
[1744379824903,16.0816,1572.3,1572.2,4.48051]
[1744379825102,21.0816,1572.3,1572.2,1.27271]
[1744379825302,21.0816,1572.3,1572.2,4.48051]
[1744379825502,16.0816,1572.3,1572.2,4.48051]
[1744379825807,22.35423,1572.3,1572.2,1.27271]
[1744379826409,21.0816,1572.3,1572.2,1.27271]
[1744379826907,16.0816,1572.3,1572.2,4.48051]
[1744379827411,0.00953803,1572.5,1572.4,1.27255]
[1744379827610,10.88373803,1572.5,1572.4,4.48035]
[1744379829211,10.88373803,1572.5,1572.4,1.27255]
[1744379829516,10.88373803,1572.5,1572.1,3.2078]
[1744379829517,1.27263,1572.3,1572.1,3.2078]
[1744379829719,11.2787,1572.2,1572.1,4.48059]
[1744379830010,11.2787,1572.2,1572.1,4.46760039]
[1744379831212,12.55141,1572.2,1572.1,4.46760039]
[1744379831412,11.2787,1572.2,1572.1,4.46760039]
[1744379831813,12.55141,1572.2,1572.1,3.19481039]
[1744379832018,11.2787,1572.2,1572.1,4.46760039]
[1744379832805,17.55141,1572.2,1572.1,3.19481039]
[1744379833012,16.2787,1572.2,1572.1,4.46760039]
[1744379833511,1.27287,1572.0,1571.9,11.24686301]
[1744379833712,1.27287,1572.0,1571.9,9.97393301]
[1744379833912,6.27287,1572.0,1571.9,9.97393301]
[1744379834314,9.48067,1572.0,1571.9,9.97393301]
[1744379834714,1.27295,1571.9,1571.8,14.96089952]
[1744379834916,1.27303,1571.8,1571.7,0.00953803]
[1744379835312,6.27303,1571.8,1571.7,0.00953803]
[1744379836715,9.48083,1571.8,1571.7,0.00953803]
[1744379836917,6.27303,1571.8,1571.7,0.00953803]
[1744379840513,6.27303,1571.8,1571.7,1e-08]
[1744379840514,9.48083,1571.8,1571.7,1e-08]
[1744379840714,6.27303,1571.8,1571.7,1e-08]
[1744379840914,9.48083,1571.8,1571.7,1e-08]
[1744379841321,11.25477651,1571.8,1571.7,1e-08]
[1744379841820,16.41527651,1571.8,1571.7,1e-08]
[1744379842322,20.25987651,1571.8,1571.7,1e-08]
[1744379843419,1.27344,1571.3,1571.2,3.2078]
[1744379844013,1.2736,1571.1,1571.0,10.8889]
[1744379844214,5.161,1571.3,1571.0,12.16258]
[1744379844414,1.27352,1571.2,1571.1,3.2078]
[1744379844816,0.00953803,1571.3,1571.2,1.27352]
[1744379845009,0.00953803,1571.3,1571.2,12.23502]
[1744379845921,0.00953803,1571.3,1571.2,17.29392]
[1744379846315,22.3879473,1571.8,1571.2,27.38769]
[1744379846517,12.33738555,1571.8,1571.7,1.27311]
[1744379846719,12.4417,1572.7,1572.0,3.18203]
[1744379846919,9.56946039,1572.6,1572.2,3.2078]
[1744379847220,1.27274,1572.2,1571.9,3.2078]
[1744379847410,0.00953803,1572.2,1572.1,1.27277]
[1744379847619,1.28226803,1572.2,1572.0,1.27281]
[1744379847915,1.27281,1572.1,1571.9,4.49023803]
[1744379848115,1.27281,1572.1,1572.0,1.27287]
[1744379848421,1.28230803,1572.2,1572.0,7.58704]
[1744379848615,1.27279,1572.1,1572.0,6.3142]
[1744379849822,1.27287,1572.0,1571.9,0.00953803]
[1744379850020,7.65737,1572.0,1571.9,0.00953803]
[1744379850221,12.65737,1572.0,1571.9,0.00953803]
[1744379852222,12.65737,1572.0,1571.9,1e-08]
[1744379852822,1.27328,1571.5,1571.4,19.94883415]
[1744379853126,3.18264,1571.8,1571.3,24.72686404]
[1744379853127,1.27336,1571.4,1571.3,24.72686404]
[1744379853318,16.16846,1571.4,1571.3,0.31234715]
[1744379853512,1.27344,1571.3,1571.2,20.65932968]
[1744379853827,7.69884,1571.3,1571.2,19.22086968]
[1744379854124,13.18944189,1571.3,1571.2,19.22086968]
[1744379854524,13.18944189,1571.3,1571.2,17.72641968]
[1744379854925,1.27352,1571.2,1571.1,0.00953803]
[1744379855224,3.18401,1571.1,1570.6,24.8936706]
[1744379855415,4.48172,1570.7,1570.6,24.8936706]
[1744379855622,6.667,1570.7,1570.6,24.8936706]
[1744379855925,7.94092,1570.7,1570.6,24.8936706]
[1744379856724,7.94092,1570.7,1570.6,31.0785706]
[1744379857222,1.27392,1570.7,1570.6,31.0785706]
[1744379858723,3.2078,1570.9,1570.6,31.0785706]
[1744379858931,1.27384,1570.8,1570.7,6.0944]
[1744379859525,1.27392,1570.7,1570.6,24.8936706]
[1744379859726,9.26222,1570.7,1570.6,24.8936706]
[1744379859929,1.274,1570.6,1570.5,6.10393803]
[1744379864339,7.944,1570.6,1570.5,6.10393803]
[1744379864634,1.274,1570.6,1570.5,6.10393803]
[1744379865334,8.16144608,1571.0,1570.5,12.37801803]
[1744379865535,1.2739,1570.8,1570.6,8.4208]
[1744379865736,1.2739,1570.8,1570.7,5.8952]
[1744379865936,1.2739,1570.8,1570.7,10.8952]
[1744379866535,1.2739,1570.8,1570.7,5.8952]
[1744379868333,14.2349,1570.8,1570.7,4.24152]
[1744379868839,1.274,1570.6,1570.5,4.77663803]
[1744379869637,1.274,1570.6,1570.5,0.00953803]
[1744379869836,7.565,1570.6,1570.5,0.00953803]
[1744379872628,1.274,1570.6,1570.5,0.00953803]
[1744379873037,1.274,1570.6,1570.5,6.41183803]
[1744379873944,7.5943,1570.6,1570.5,6.41183803]
[1744379875745,7.5943,1570.6,1570.5,0.00953803]
[1744379876643,1.274,1570.6,1570.5,0.00953803]
[1744379877636,1.274,1570.6,1570.5,6.34343803]
[1744379881757,13.67633,1570.8,1570.5,11.34343803]
[1744379881758,3.18475,1570.8,1570.5,11.34343803]
[1744379881953,3.82108,1571.0,1570.6,3.2078]
[1744379882149,3.82108,1571.0,1570.8,3.2078]
[1744379882150,1.27382,1570.9,1570.8,3.2078]
[1744379882458,1.27376,1570.9,1570.8,3.73133596]
[1744379882656,1.27376,1570.9,1570.8,3.2078]
[1744379882951,8.16121608,1571.1,1570.8,3.2078]
[1744379882952,4.97718608,1571.1,1570.8,9.53515642]
[1744379883155,1.27376,1570.9,1570.8,3.2078]
[1744379883850,1.27395,1570.7,1570.6,3.2078]
[1744379884050,1.27395,1570.7,1570.5,0.00953803]
[1744379884051,1.274,1570.6,1570.5,0.00953803]
[1744379886055,1.274,1570.6,1570.5,4.49142803]
[1744379886254,1.27397,1570.7,1570.5,9.54598586]
[1744379886457,1.274,1570.6,1570.5,3.21733803]
[1744379886655,1.274,1570.6,1570.5,3.74114122]
[1744379886857,1.274,1570.6,1570.5,10.81973657]
[1744379887059,1.27399,1570.7,1570.6,1.274]
[1744379887254,3.1848,1570.8,1570.5,3.21733803]
[1744379887455,3.18441,1570.9,1570.7,3.2078]
[1744379887654,1.27384,1570.8,1570.7,3.2078]
[1744379888262,1.27379,1570.9,1570.7,9.53485014]
[1744379888455,1.27379,1570.9,1570.8,1.27379]
[1744379888665,1.27374,1571.0,1570.9,1.27372]
[1744379888856,1.27374,1571.0,1570.9,3.2078]
[1744379889055,1.27376,1570.9,1570.8,1.2738]
[1744379889257,1.27375,1571.0,1570.9,1.27374]
[1744379889453,1.27375,1571.0,1570.9,4.48154]
[1744379889652,1.27375,1571.0,1570.9,5.0]
[1744379889961,1.274,1570.6,1570.5,4.49135803]
[1744379890164,1.274,1570.6,1570.5,4.54250311]
[1744379890358,1.274,1570.6,1570.5,1.28362803]
[1744379890563,1.274,1570.6,1570.5,4.49142803]
[1744379890866,1.274,1570.6,1570.5,3.21733803]
[1744379891155,1.274,1570.6,1570.5,9.49142803]
[1744379891859,1.274,1570.6,1570.5,3.21733803]
[1744379892070,1.2739,1570.8,1570.5,4.54257239]
[1744379892255,1.27384,1570.8,1570.7,3.2078]
[1744379892452,1.27384,1570.8,1570.7,4.48172]
[1744379892656,1.27382,1570.9,1570.7,4.48164]
[1744379892960,1.27382,1570.9,1570.8,1.27384]
[1744379893260,1.27384,1570.8,1570.7,4.48166]
[1744379893467,1.27376,1571.0,1570.9,1.27375]
[1744379893761,1.27376,1571.0,1570.9,4.48155]
[1744379894266,1.27376,1571.0,1570.9,3.2078]
[1744379894762,1.27376,1571.0,1570.9,4.48156]
[1744379894964,1.27376,1571.0,1570.9,3.2078]
[1744379895356,4.97718608,1571.2,1570.9,3.2078]
[1744379895556,4.97718608,1571.2,1571.1,4.4814]
[1744379896361,6.25070608,1571.2,1571.1,4.4814]
[1744379896560,11.36897608,1571.2,1570.9,3.2078]
[1744379896861,1.27368,1571.0,1570.9,3.2078]
[1744379898759,1.27389,1570.8,1570.6,4.48174]
[1744379898960,3.18441,1570.9,1570.5,1.28356803]
[1744379899165,1.274,1570.6,1570.5,0.00953803]
[1744379899464,3.1843,1571.0,1570.5,0.00953803]
[1744379899670,1.274,1570.6,1570.5,0.00953803]
[1744379900760,4.4818,1570.6,1570.5,0.00953803]
[1744379900972,10.1186,1570.6,1570.5,0.00953803]
[1744379902574,5.1186,1570.6,1570.5,0.00953803]
[1744379903263,1.9108,1570.6,1570.5,0.00953803]
[1744379903470,1.274,1570.6,1570.5,0.00953803]
[1744379905573,6.274,1570.6,1570.5,0.00953803]
[1744379906271,1.274,1570.6,1570.5,0.00953803]
[1744379907578,6.274,1570.6,1570.5,8.03e-06]
[1744379907771,1.27449,1570.0,1569.9,14.92197393]
[1744379907972,1.27458,1569.9,1569.7,4.48252]
[1744379908367,1.27456,1570.0,1569.8,1.27465]
[1744379908567,13.01746,1570.3,1569.9,3.2078]
[1744379908768,1.27449,1570.0,1569.9,4.48236]
[1744379909076,1.27449,1570.0,1569.9,0.00953802]
[1744379910577,1.27449,1570.0,1569.9,3.21733802]
[1744379911375,1.27448,1570.1,1569.9,3.21733802]
[1744379911573,1.27449,1570.0,1569.9,4.49189802]
[1744379911873,1.27449,1570.0,1569.9,3.21733802]
[1744379912075,1.27449,1570.0,1569.9,0.00953802]
[1744379912974,1.27449,1570.0,1569.9,3.21733802]
[1744379913370,1.27449,1570.0,1569.9,0.00953802]
[1744379913582,6.26457437,1570.0,1569.9,0.00953802]
[1744379913875,6.26457437,1570.0,1569.9,3.21733802]
[1744379914073,6.26457437,1570.0,1569.9,0.00953802]
[1744379914585,4.99008437,1570.0,1569.9,3.21733802]
[1744379914781,6.26457437,1570.0,1569.9,9.49190802]
[1744379915581,6.26457437,1570.0,1569.9,8.21733802]
[1744379915780,6.26457437,1570.0,1569.9,3.21733802]
[1744379917685,1.27449,1570.0,1569.9,3.21733802]
[1744379918379,1.27449,1570.0,1569.9,0.00953802]
[1744379918678,9.48229,1570.0,1569.9,0.00953802]
[1744379918891,1.27449,1570.0,1569.9,3.21733802]
[1744379919580,1.27445,1570.1,1570.0,1.27449]
[1744379919882,1.27446,1570.1,1569.9,4.49189802]
[1744379920090,6.622,1570.2,1570.0,1.27446]
[1744379920285,6.622,1570.2,1569.9,4.49183802]
[1744379920581,6.26452437,1570.1,1569.9,4.49183802]
[1744379921379,1.27449,1570.0,1569.9,4.49183802]
[1744379921575,1.27449,1570.0,1569.9,0.00953802]
[1744379925988,6.27449,1570.0,1569.9,0.00953802]
[1744379926185,1.27449,1570.0,1569.9,0.00953802]
[1744379926487,6.27449,1570.0,1569.9,8.02e-06]
[1744379928089,1.27506,1569.3,1569.2,3.2078]
[1744379928690,6.3751,1569.4,1569.0,4.53193362]
[1744379928890,6.3751,1569.4,1569.0,5.80718362]
[1744379928891,1.2752,1569.2,1569.0,5.80718362]
[1744379929490,0.00953803,1569.3,1569.0,8.2078]
[1744379929681,0.00953803,1569.3,1569.2,4.48294]
[1744379929880,1.28459803,1569.3,1569.2,3.2078]
[1744379930086,0.00953803,1569.3,1569.2,9.48294]
[1744379930296,1.28459803,1569.3,1569.2,8.2078]
[1744379931190,0.00953803,1569.3,1569.0,3.2078]
[1744379931390,1.27529,1569.1,1569.0,3.2078]
[1744379931693,1.2752,1569.2,1569.1,1.27522]
[1744379931888,3.19730803,1569.3,1569.0,4.48304]
[1744379932091,1.27522,1569.1,1569.0,4.4831]
[1744379932598,1.27522,1569.1,1569.0,9.4831]
[1744379934100,1.27522,1569.1,1569.0,3.2078]
[1744379934899,1.27543,1568.9,1568.8,1.2754]
[1744379935202,1.27543,1568.9,1568.8,3.2078]
[1744379935493,3.18815,1569.1,1568.8,4.48327]
[1744379935703,1.27529,1569.1,1569.0,4.48305]
[1744379936386,1.2753,1569.0,1568.8,1.2754]
[1744379936590,1.2753,1569.0,1568.9,3.2078]
[1744379936994,1.2753,1569.0,1568.9,4.48319]
[1744379937201,1.2753,1569.0,1568.9,3.2078]
[1744379937402,1.2753,1569.0,1568.9,4.48319]
[1744379938005,1.27528,1569.1,1569.0,1.27529]
[1744379938301,1.2753,1569.0,1568.9,4.48312]
[1744379938799,3.18827,1569.0,1568.7,3.2078]
[1744379939000,3.18827,1569.0,1568.9,3.2078]
[1744379939001,1.2753,1569.0,1568.9,3.2078]
[1744379939301,1.2753,1569.0,1568.9,4.48319]
[1744379939898,1.27526,1569.1,1569.0,1.2753]
[1744379940104,1.2753,1569.0,1568.9,4.48312]
[1744379940299,0.00953803,1569.3,1569.2,1.27514]
[1744379940506,9.95437217,1569.8,1569.6,1.27482]
[1744379940799,9.95437217,1569.8,1569.6,9.8328]
[1744379940998,10.5911721,1569.9,1569.8,1.27465]
[1744379941200,10.5911721,1569.9,1569.8,3.2078]
[1744379941406,10.5911721,1569.9,1569.7,3.2078]
[1744379941603,1.27465,1569.8,1569.7,3.2078]
[1744379941799,1.27474,1569.7,1569.6,4.49213803]
[1744379942000,1.27474,1569.7,1569.6,0.00953803]
[1744379942195,1.2747,1569.8,1569.6,4.49208803]
[1744379942403,10.5911721,1569.9,1569.7,1.27474]
[1744379942609,1.27469,1569.8,1569.7,1.27473]
[1744379942994,11.8658021,1569.9,1569.7,4.48253]
[1744379943200,11.8658221,1569.8,1569.7,1.27473]
[1744379943594,11.8658221,1569.8,1569.6,0.00953803]
[1744379943895,11.8658221,1569.8,1569.6,4.49209803]
[1744379944102,1.27474,1569.7,1569.6,4.49215803]
[1744379944402,11.8658821,1569.8,1569.6,3.21733803]
[1744379944596,11.8658621,1569.8,1569.6,4.49207803]
[1744379944794,11.8658621,1569.8,1569.7,1.27474]
[1744379945206,11.8658621,1569.8,1569.6,4.49209803]
[1744379945707,1.27474,1569.7,1569.6,3.21733803]
[1744379946202,1.27474,1569.7,1569.6,4.49215803]
[1744379946399,10.5911721,1569.8,1569.6,3.21733803]
[1744379946600,11.8658521,1569.8,1569.7,1.27474]
[1744379946906,1.27474,1569.7,1569.6,3.21733803]
[1744379947107,11.8658921,1569.8,1569.6,4.49208803]
[1744379947611,1.27472,1569.8,1569.7,1.27474]
[1744379947902,3.19578803,1570.0,1569.6,4.49208803]
[1744379948108,1.27469,1569.8,1569.6,4.49208803]
[1744379948306,1.28407803,1570.0,1569.8,1.2746]
[1744379948509,1.27457,1569.9,1569.7,1.27467]
[1744379948908,1.27457,1569.9,1569.8,1.27465]
[1744379949109,1.27457,1569.9,1569.7,1.27467]
[1744379949311,0.00953803,1570.0,1569.8,1.27463]
[1744379949312,1.28409803,1570.0,1569.8,1.27463]
[1744379949513,1.27457,1569.9,1569.8,1.27463]
[1744379949814,1.27457,1569.9,1569.7,1.27468]
[1744379950014,1.27457,1569.9,1569.6,3.21733803]
[1744379950203,1.27466,1569.8,1569.6,4.49210803]
[1744379950409,1.27463,1569.9,1569.7,1.27473]
[1744379951111,1.27463,1569.9,1569.8,4.48245]
[1744379951315,1.27463,1569.9,1569.8,3.2078]
[1744379951610,1.27465,1569.8,1569.6,0.00953803]
[1744379951805,1.27474,1569.7,1569.6,0.00953803]
[1744379952006,1.28409803,1570.0,1569.6,0.00953803]
[1744379952210,1.27465,1569.8,1569.7,3.2078]
[1744379952816,0.00953803,1570.0,1569.7,3.2078]
[1744379953016,1.27465,1569.9,1569.7,4.48251]
[1744379953408,1.27465,1569.9,1569.7,4.48248]
[1744379953713,0.00953803,1570.0,1569.7,3.2078]
[1744379953914,1.28407803,1570.0,1569.7,4.48249]
[1744379954306,1.27459,1569.9,1569.7,4.48249]
[1744379954504,1.28405803,1570.0,1569.7,4.48247]
[1744379954915,1.27461,1569.9,1569.7,4.48247]
[1744379955110,0.00953803,1570.0,1569.9,1.27457]
[1744379955317,0.00953803,1570.0,1569.9,4.48237]
[1744379955617,1.28402803,1570.0,1569.8,1.27461]
[1744379955813,0.00953803,1570.0,1569.9,4.48237]
[1744379956014,1.28402803,1570.0,1569.9,4.48237]
[1744379957517,1.28402803,1570.0,1569.9,3.2078]
[1744379957815,0.00953803,1570.0,1569.9,4.48237]
[1744379958217,0.00953803,1570.0,1569.9,9.48237]
[1744379960318,17.91819386,1570.8,1570.4,1.27407]
[1744379960511,1.27392,1570.7,1570.6,4.4818]
[1744379961222,1.27392,1570.7,1570.6,3.2078]
[1744379961420,1.27392,1570.7,1570.6,4.4818]
[1744379961621,13.23824189,1570.8,1570.7,1.27392]
[1744379962114,1.42940189,1570.8,1570.7,7.59497079]
[1744379962317,13.58990761,1570.9,1570.8,1.27384]
[1744379962518,19.63565442,1571.0,1570.9,1.27376]
[1744379962816,22.09011122,1571.1,1571.0,1.27368]
[1744379963022,14.94987439,1571.3,1571.2,1.27344]
[1744379963218,14.94987439,1571.3,1571.2,4.48124]
[1744379964111,16.22331439,1571.3,1571.2,3.2078]
[1744379964523,16.22331439,1571.3,1571.0,3.2078]
[1744379964722,16.22331439,1571.3,1571.2,1.27352]
[1744379964923,1.27356,1571.2,1571.0,4.48141]
[1744379965123,14.94987439,1571.3,1571.1,1.27357]
[1744379965421,21.54287439,1571.3,1570.8,6.39241]
[1744379965622,1.27367,1571.1,1570.8,3.2078]
[1744379965821,21.54287439,1571.3,1570.8,3.2078]
[1744379965822,14.94987439,1571.3,1570.9,3.18436]
[1744379966020,14.94987439,1571.3,1571.2,1.27352]
[1744379967028,0.00953803,1571.4,1571.3,1.27344]
[1744379967219,8.03e-06,1571.4,1571.3,4.48124]
[1744379967421,8.03e-06,1571.4,1571.3,9.48124]
[1744379969334,8.03e-06,1571.4,1571.3,4.48124]
[1744379977727,5.00000803,1571.4,1571.2,1.27345]
[1744379977929,1.27338803,1571.4,1571.3,1.27344]
[1744379978130,6.27338803,1571.4,1571.3,4.48124]
[1744379978332,5.00000803,1571.4,1571.1,9.7988]
[1744379978532,8.03e-06,1571.4,1571.3,3.2078]
[1744379979134,8.20780803,1571.4,1571.0,3.2078]
[1744379979432,3.20780803,1571.4,1571.0,3.2078]
[1744379979819,8.03e-06,1571.4,1571.0,3.2078]
[1744379980023,8.03e-06,1571.4,1571.3,3.2078]
[1744379980227,8.03e-06,1571.4,1571.0,3.2078]
[1744379981435,8.03e-06,1571.4,1571.2,3.2078]
[1744379981637,8.03e-06,1571.4,1571.0,3.2078]
[1744379981836,8.03e-06,1571.4,1571.3,3.2078]
[1744379982027,8.03e-06,1571.4,1571.0,3.2078]
[1744379982227,8.03e-06,1571.4,1571.2,3.2078]
[1744379982632,8.03e-06,1571.4,1571.0,3.2078]
[1744379983334,8.03e-06,1571.4,1571.2,3.2078]
[1744379983535,8.03e-06,1571.4,1570.9,3.2078]
[1744379984027,8.03e-06,1571.4,1571.1,3.2078]
[1744379987835,8.03e-06,1571.4,1571.1,3.72574453]
[1744379988236,8.03e-06,1571.4,1571.1,3.2078]
[1744379988436,8.03e-06,1571.4,1571.1,4.52344074]
[1744379988636,8.03e-06,1571.4,1571.1,3.2078]
[1744379989045,8.03e-06,1571.4,1571.1,4.00321721]
[1744379989243,8.03e-06,1571.4,1571.3,3.2078]
[1744379989442,8.03e-06,1571.4,1571.3,4.52821846]
[1744379990058,8.03e-06,1571.4,1571.3,4.52814757]
[1744379992154,8.03e-06,1571.4,1571.3,1.32034757]
[1744379992353,8.03e-06,1571.4,1571.3,4.53059752]
[1744379994846,5.00000803,1571.4,1571.3,1.32279752]
[1744379995156,5.00000803,1571.4,1570.7,1.32348556]
[1744379995461,3.2078,1571.3,1570.8,1.32364024]
[1744379995665,3.2078,1571.3,1570.9,1.32364024]
[1744379995865,3.2078,1571.3,1570.6,13.18360613]
[1744379996054,3.2078,1571.3,1570.7,1.32410558]
[1744379996250,3.2078,1571.3,1570.8,1.32410558]
[1744379996452,3.2078,1571.3,1570.9,1.32375291]
[1744379996759,3.2078,1571.3,1570.6,13.18360613]
[1744379996957,3.2078,1571.3,1570.7,1.32348861]
[1744379997150,3.2078,1571.3,1570.8,4.53112098]
[1744379997458,3.2078,1571.3,1570.9,1.32332098]
[1744379997659,3.2078,1571.3,1571.0,1.32332098]
[1744379997850,3.2078,1571.3,1570.8,3.2078]
[1744379998051,3.2078,1571.3,1570.9,1.32281911]
[1744379998253,8.03e-06,1571.4,1571.1,3.2078]
[1744379998554,8.03e-06,1571.4,1571.0,3.2078]
[1744379998758,8.03e-06,1571.4,1571.1,1.32272725]
[1744379999060,8.03e-06,1571.4,1571.0,3.2078]
[1744379999255,3.2078,1571.2,1570.6,3.2078]
[1744379999456,3.2078,1570.8,1570.5,0.00953803]
[1744379999659,3.2078,1570.8,1570.6,1.32399175]
[1744379999859,3.2078,1570.8,1570.5,0.00953803]
[1744380000358,3.2078,1570.8,1569.9,30.533767]
[1744380000359,88.239,1570.7,1569.6,18.2448241]
[1744380000663,3.65066875,1570.0,1569.1,21.39935171]
[1744380000866,3.65066875,1570.0,1567.9,0.6368]
[1744380001066,3.2078,1568.0,1566.9,26.67269782]
[1744380001260,6.85846875,1567.0,1566.7,169.10228086]
[1744380001566,3.2078,1566.6,1566.4,209.17522287]
[1744380001861,3.16161064,1566.5,1566.4,201.37789287]
[1744380002064,9.63065111,1566.5,1566.4,199.32045287]
[1744380002253,3.26161064,1566.5,1566.4,193.22083287]
[1744380002450,3.26161064,1566.5,1566.4,196.42863287]
[1744380002451,2.88427064,1566.5,1566.4,196.42863287]
[1744380002654,2.88427064,1566.5,1566.2,3.2078]
[1744380002655,1.88427064,1566.5,1566.2,3.2078]
[1744380002852,1.2775,1566.3,1566.2,3.2078]
[1744380003050,1.88391157,1566.3,1566.2,28.7062]
[1744380003255,0.6630735,1566.3,1566.2,33.7062]
[1744380003452,3.2078,1567.8,1566.6,3.2078]
[1744380003660,1.26335262,1567.7,1567.5,3.2078]
[1744380003854,1.26335262,1567.6,1567.2,3.2078]
[1744380004154,0.60423909,1567.5,1567.3,25.4984]
[1744380004360,1.17487126,1567.4,1567.2,82.40305203]
[1744380004554,3.2078,1567.3,1567.2,5.00956968]
[1744380004763,0.67661626,1567.3,1567.2,56.91422171]
[1744380004962,0.67661626,1567.3,1567.2,107.90492171]
[1744380005168,0.67661626,1567.3,1567.2,0.00956968]
[1744380005471,3.2078,1564.0,1562.8,48.64]
[1744380005765,3.2078,1563.1,1562.1,31.48959383]
[1744380005966,3.2078,1562.2,1560.8,3.2078]
[1744380006163,3.2078,1561.4,1560.9,32.76963383]
[1744380006361,0.7057318,1562.1,1561.5,3.2078]
[1744380006658,0.7057318,1562.1,1561.8,3.21898775]